[Event "Polofinale MCR junioru 2023"]
[Site "Czech Republic"]
[Date "2023.11.18"]
[Round "9.25"]
[White "Mrazek, Roman"]
[Black "Vlcek, Vojtech"]
[Result "1/2-1/2"]
[TimeControl "90 min per 40 moves + 15 min + 30 sec / move from move 1"]
[WhiteFideId "23707062"]
[BlackFideId "23728647"]
[WhiteElo "1866"]
[BlackElo "1703"]

1. e4 {[%clk 01:30:59]} {[%emt 13:51:35]} e5 {[%clk 01:30:17]} {[%emt
00:00:44]} 2. Nf3 {[%clk 01:31:15]} {[%emt 00:00:13]} Nc6 {[%clk 01:30:31]}
{[%emt 00:00:16]} 3. Bc4 {[%clk 01:31:39]} {[%emt 00:00:07]} Bc5 {[%clk
01:30:33]} {[%emt 00:00:26]} 4. c3 {[%clk 01:32:01]} {[%emt 00:00:08]} Nf6
{[%clk 01:30:24]} {[%emt 00:00:40]} 5. d3 {[%clk 01:32:27]} {[%emt 00:00:04]}
O-O {[%clk 01:30:29]} {[%emt 00:00:24]} 6. O-O {[%clk 01:32:28]} {[%emt
00:00:28]} d6 {[%clk 01:26:21]} {[%emt 00:04:39]} 7. a4 {[%clk 01:31:33]}
{[%emt 00:01:24]} a6 {[%clk 01:25:52]} {[%emt 00:00:58]} 8. Re1 {[%clk
01:31:44]} {[%emt 00:00:20]} h6 {[%clk 01:14:30]} {[%emt 00:11:52]} 9. Nbd2
{[%clk 01:31:45]} {[%emt 00:00:27]} Re8 {[%clk 01:14:17]} {[%emt 00:00:45]} 10.
Nf1 {[%clk 01:31:11]} {[%emt 00:01:04]} Ne7 {[%clk 01:09:58]} {[%emt 00:04:48]}
11. Qb3 {[%clk 01:28:13]} {[%emt 00:03:27]} Rf8 {[%clk 01:07:41]} {[%emt
00:02:50]} 12. d4 {[%clk 01:27:01]} {[%emt 00:01:42]} exd4 {[%clk 01:07:58]}
{[%emt 00:00:13]} 13. cxd4 {[%clk 01:27:24]} {[%emt 00:00:07]} Ba7 {[%clk
01:08:10]} {[%emt 00:00:17]} 14. Bd3 {[%clk 01:19:18]} {[%emt 00:08:34]} Nc6
{[%clk 01:03:37]} {[%emt 00:05:05]} 15. Be3 {[%clk 01:19:11]} {[%emt 00:00:35]}
Ng4 {[%clk 01:02:45]} {[%emt 00:01:24]} 16. Ng3 {[%clk 01:17:09]} {[%emt
00:02:31]} Nxe3 {[%emt 00:02:20]} 17. fxe3 Na5 {[%clk 00:55:12]} {[%emt
00:06:14]} 18. Qc3 {[%clk 01:15:46]} {[%emt 00:02:19]} c5 {[%clk 00:52:18]}
{[%emt 00:03:27]} 19. Rad1 {[%clk 01:10:26]} {[%emt 00:05:49]} Qb6 {[%clk
00:49:38]} {[%emt 00:03:10]} 20. Bc2 {[%clk 01:08:29]} {[%emt 00:02:27]} Nc6
{[%clk 00:46:59]} {[%emt 00:03:12]} 21. d5 {[%clk 01:05:48]} {[%emt 00:03:09]}
Ne7 {[%clk 00:45:44]} {[%emt 00:01:46]} 22. e5 {[%clk 01:05:27]} {[%emt
00:00:52]} Bg4 {[%clk 00:42:53]} {[%emt 00:03:20]} 23. exd6 {[%clk 00:57:06]}
{[%emt 00:08:52]} Qxd6 {[%clk 00:42:47]} {[%emt 00:00:36]} 24. e4 {[%clk
00:56:25]} {[%emt 00:01:11]} b5 {[%clk 00:40:33]} {[%emt 00:02:45]} 25. e5
{[%clk 00:56:20]} {[%emt 00:00:36]} c4+ {[%clk 00:39:55]} {[%emt 00:01:08]} 26.
Kh1 {[%clk 00:56:34]} {[%emt 00:00:15]} Qb6 {[%clk 00:39:40]} {[%emt 00:00:43]}
27. h3 {[%clk 00:53:56]} {[%emt 00:03:10]} b4 {[%clk 00:34:04]} {[%emt
00:06:06]} 28. Qxc4 {[%clk 00:53:45]} {[%emt 00:00:41]} Bxf3 {[%clk 00:34:28]}
{[%emt 00:00:07]} 29. gxf3 {[%clk 00:54:02]} {[%emt 00:00:12]} Qf2 {[%clk
00:34:50]} {[%emt 00:00:07]} 30. Qe4 {[%clk 00:51:06]} {[%emt 00:03:27]} Ng6
{[%clk 00:32:36]} {[%emt 00:02:44]} 31. Nf5 {[%clk 00:49:49]} {[%emt 00:01:43]}
Rfe8 {[%clk 00:31:12]} {[%emt 00:01:58]} 32. Re2 {[%clk 00:49:35]} {[%emt
00:00:46]} Rxe5 {[%clk 00:28:14]} {[%emt 00:03:27]} 33. Rxf2 {[%emt 00:02:06]}
Rxe4 {[%emt 00:00:06]} 34. fxe4 {[%clk 00:46:51]} {[%emt 00:01:02]} Bxf2 {[%clk
00:28:39]} {[%emt 00:00:05]} 35. a5 {[%clk 00:41:15]} {[%emt 00:06:05]} Ne5
{[%clk 00:22:29]} {[%emt 00:06:39]} 36. Ba4 {[%clk 00:41:08]} {[%emt 00:00:34]}
Nc4 {[%clk 00:17:55]} {[%emt 00:05:03]} 37. Ne7+ {[%clk 00:35:04]} {[%emt
00:06:38]} Kf8 {[%clk 00:18:09]} {[%emt 00:00:17]} 38. Rf1 {[%clk 00:29:15]}
{[%emt 00:06:18]} Kxe7 {[%clk 00:16:31]} {[%emt 00:02:09]} 39. Rxf2 {[%clk
00:29:09]} {[%emt 00:00:36]} Nxa5 {[%clk 00:10:33]} {[%emt 00:06:28]} 1/2-1/2

[Event "Polofinale MCR junioru 2023"]
[Site "Czech Republic"]
[Date "2023.11.18"]
[Round "9.26"]
[White "Roubal, Matyas"]
[Black "Sadil, Antonin"]
[Result "1/2-1/2"]
[TimeControl "90 min per 40 moves + 15 min + 30 sec / move from move 1"]
[WhiteFideId "23727152"]
[BlackFideId "23735597"]
[WhiteElo "1837"]
[BlackElo "1648"]

1. e4 {[%clk 01:30:58]} {[%emt 00:00:01]} c5 {[%clk 01:27:03]} {[%emt
00:03:58]} 2. Nf3 {[%clk 01:31:19]} {[%emt 00:00:08]} d6 {[%clk 01:27:12]}
{[%emt 00:00:21]} 3. d4 {[%clk 01:31:45]} {[%emt 00:00:04]} cxd4 {[%clk
01:27:34]} {[%emt 00:00:09]} 4. Nxd4 {[%clk 01:32:11]} {[%emt 00:00:04]} Nf6
{[%clk 01:27:53]} {[%emt 00:00:10]} 5. Nc3 {[%clk 01:32:36]} {[%emt 00:00:04]}
g6 {[%clk 01:28:17]} {[%emt 00:00:07]} 6. Be3 {[%clk 01:32:53]} {[%emt
00:00:13]} Bg7 {[%clk 01:28:40]} {[%emt 00:00:07]} 7. f3 {[%clk 01:33:13]}
{[%emt 00:00:11]} O-O {[%clk 01:29:01]} {[%emt 00:00:09]} 8. Bc4 {[%clk
01:33:40]} {[%emt 00:00:02]} Nc6 {[%clk 01:29:18]} {[%emt 00:00:13]} 9. Qd2
{[%clk 01:34:05]} {[%emt 00:00:04]} Bd7 {[%clk 01:29:41]} {[%emt 00:00:07]} 10.
O-O-O {[%clk 01:34:31]} {[%emt 00:00:05]} Rb8 {[%clk 01:30:01]} {[%emt
00:00:10]} 11. Nxc6 {[%clk 01:29:36]} {[%emt 00:05:25]} bxc6 {[%clk 01:30:03]}
{[%emt 00:00:28]} 12. Bxa7 {[%clk 01:29:19]} {[%emt 00:00:47]} Rb7 {[%clk
01:28:49]} {[%emt 00:01:43]} 13. Be3 {[%clk 01:27:58]} {[%emt 00:01:50]} c5
{[%clk 01:26:35]} {[%emt 00:02:45]} 14. Rde1 {[%clk 01:06:01]} {[%emt
00:22:27]} Qb6 {[%clk 01:21:40]} {[%emt 00:05:25]} 15. Nd1 {[%clk 01:02:31]}
{[%emt 00:04:00]} Nxe4 {[%clk 01:20:18]} {[%emt 00:01:53]} 16. fxe4 {[%clk
01:02:49]} {[%emt 00:00:12]} Bxb2+ {[%clk 01:20:33]} {[%emt 00:00:14]} 17. Nxb2
{[%clk 01:03:16]} {[%emt 00:00:04]} Qxb2+ {[%clk 01:20:53]} {[%emt 00:00:10]}
18. Kd1 {[%clk 01:03:43]} {[%emt 00:00:02]} Bg4+ {[%clk 01:21:02]} {[%emt
00:00:21]} 19. Be2 {[%clk 01:03:34]} {[%emt 00:00:38]} Be6 {[%clk 01:18:19]}
{[%emt 00:03:12]} 20. Qd3 {[%clk 00:56:08]} {[%emt 00:07:56]} c4 {[%clk
01:15:54]} {[%emt 00:02:56]} 21. Qd4 {[%clk 00:55:02]} {[%emt 00:01:36]} c3
{[%clk 01:14:24]} {[%emt 00:02:00]} 22. Bc1 {[%clk 00:48:08]} {[%emt 00:07:24]}
Qxa2 {[%clk 01:12:29]} {[%emt 00:02:23]} 23. h4 {[%clk 00:45:53]} {[%emt
00:02:47]} Rb1 {[%clk 01:09:47]} {[%emt 00:03:12]} 24. Qxc3 {[%clk 00:38:51]}
{[%emt 00:07:32]} Rc8 {[%clk 01:10:00]} {[%emt 00:00:17]} 25. Qd2 {[%clk
00:38:23]} {[%emt 00:00:58]} d5 {[%clk 01:00:17]} {[%emt 00:10:13]} 26. exd5
{[%clk 00:34:58]} {[%emt 00:03:56]} Bxd5 {[%clk 00:58:41]} {[%emt 00:02:05]} 27.
Bd3 {[%clk 00:32:03]} {[%emt 00:03:25]} Be6 {[%clk 00:53:08]} {[%emt 00:06:03]}
28. Ke2 {[%clk 00:28:33]} {[%emt 00:04:00]} Bc4 {[%clk 00:50:58]} {[%emt
00:02:40]} 29. Bxc4 {[%clk 00:25:00]} {[%emt 00:04:03]} Qxc4+ {[%clk 00:51:20]}
{[%emt 00:00:08]} 30. Kf2 {[%clk 00:24:20]} {[%emt 00:01:09]} Rb5 {[%clk
00:50:00]} {[%emt 00:01:50]} 31. Rxe7 {[%clk 00:22:19]} {[%emt 00:02:31]} Rf5+
{[%clk 00:49:30]} {[%emt 00:00:59]} 32. Kg3 {[%clk 00:21:21]} {[%emt 00:01:29]}
h5 {[%clk 00:48:08]} {[%emt 00:01:52]} 33. Qe2 {[%clk 00:19:23]} {[%emt
00:02:27]} Qa4 {[%clk 00:47:32]} {[%emt 00:01:05]} 34. Bb2 {[%clk 00:17:26]}
{[%emt 00:02:28]} Rf4 {[%clk 00:43:34]} {[%emt 00:04:28]} 35. Qe5 {[%clk
00:14:27]} {[%emt 00:03:29]} Rg4+ {[%clk 00:42:29]} {[%emt 00:01:35]} 36. Kh2
{[%clk 00:13:37]} {[%emt 00:01:20]} Rxg2+ {[%clk 00:41:44]} {[%emt 00:01:16]}
37. Kxg2 {[%clk 00:13:43]} {[%emt 00:00:24]} Rxc2+ {[%clk 00:41:29]} {[%emt
00:00:45]} 38. Kf1 {[%clk 00:08:31]} {[%emt 00:05:42]} Qc4+ {[%clk 00:41:29]}
{[%emt 00:00:30]} 39. Qe2 {[%clk 00:08:24]} {[%emt 00:00:38]} Qf4+ {[%clk
00:39:40]} {[%emt 00:02:18]} 40. Ke1 {[%clk 00:08:36]} {[%emt 00:00:18]} Qg3+
{[%clk 00:38:48]} {[%emt 00:01:21]} 41. Kd1 {[%clk 00:08:01]} {[%emt 00:01:06]}
Rxe2 {[%clk 00:39:06]} {[%emt 00:00:12]} 42. Rxe2 {[%clk 00:08:17]} {[%emt
00:00:13]} Qd3+ {[%clk 00:39:11]} {[%emt 00:00:25]} 43. Ke1 {[%clk 00:07:19]}
{[%emt 00:01:29]} Kh7 {[%clk 00:37:02]} {[%emt 00:02:38]} 44. Rg1 {[%clk
00:04:01]} {[%emt 00:03:18]} Qb1+ {[%clk 00:36:53]} {[%emt 00:00:39]} 45. Kf2
{[%clk 00:04:56]} {[%emt 00:00:05]} Qf5+ {[%clk 00:37:09]} {[%emt 00:00:14]} 46.
Ke3 {[%clk 00:03:06]} {[%emt 00:02:21]} Qe6+ {[%clk 00:35:18]} {[%emt
00:02:21]} 47. Kd3 {[%clk 00:00:42]} {[%emt 00:02:53]} Qb3+ {[%clk 00:35:00]}
{[%emt 00:00:48]} 1/2-1/2

[Event "Polofinale MCR junioru 2023"]
[Site "Czech Republic"]
[Date "2023.11.18"]
[Round "9.27"]
[White "Nespurek, Jakub"]
[Black "Bednar, Milos"]
[Result "1-0"]
[TimeControl "90 min per 40 moves + 15 min + 30 sec / move from move 1"]
[WhiteFideId "391816"]
[BlackFideId "23709812"]
[WhiteElo "1680"]
[BlackElo "1833"]

1. e4 {[%clk 01:30:50]} {[%emt 00:00:09]} c5 {[%clk 01:30:57]} {[%emt
00:00:03]} 2. c3 {[%clk 01:30:47]} {[%emt 00:00:33]} d5 {[%clk 01:31:24]}
{[%emt 00:00:04]} 3. exd5 {[%clk 01:31:12]} {[%emt 00:00:04]} Qxd5 {[%clk
01:31:50]} {[%emt 00:00:05]} 4. d4 {[%clk 01:31:37]} {[%emt 00:00:05]} Nc6
{[%clk 01:32:17]} {[%emt 00:00:03]} 5. Nf3 {[%clk 01:31:57]} {[%emt 00:00:09]}
Bg4 {[%clk 01:32:43]} {[%emt 00:00:04]} 6. Be2 {[%clk 01:32:14]} {[%emt
00:00:13]} e6 {[%clk 01:30:47]} {[%emt 00:02:27]} 7. O-O {[%clk 01:32:18]}
{[%emt 00:00:26]} Nf6 {[%clk 01:25:23]} {[%emt 00:05:54]} 8. Be3 {[%clk
01:31:17]} {[%emt 00:01:31]} cxd4 {[%clk 01:25:44]} {[%emt 00:00:09]} 9. cxd4
{[%clk 01:31:31]} {[%emt 00:00:15]} Be7 {[%clk 01:24:01]} {[%emt 00:02:13]} 10.
Nc3 {[%clk 01:31:44]} {[%emt 00:00:17]} Qd6 {[%clk 01:23:15]} {[%emt 00:01:15]}
11. Qb3 {[%clk 01:31:10]} {[%emt 00:01:04]} O-O {[%clk 01:22:56]} {[%emt
00:00:51]} 12. Rfd1 {[%clk 01:26:13]} {[%emt 00:05:26]} Nb4 {[%clk 01:19:18]}
{[%emt 00:04:09]} 13. Rd2 {[%clk 01:16:29]} {[%emt 00:10:14]} b6 {[%clk
01:04:36]} {[%emt 00:15:13]} 14. a3 {[%clk 01:07:49]} {[%emt 00:09:09]} Nbd5
{[%clk 01:00:58]} {[%emt 00:04:08]} 15. Nb5 {[%clk 01:06:19]} {[%emt 00:02:00]}
Qb8 {[%clk 00:55:58]} {[%emt 00:05:30]} 16. Rc1 {[%clk 00:59:23]} {[%emt
00:07:26]} a6 {[%clk 00:43:32]} {[%emt 00:12:57]} 17. Nc3 {[%clk 00:59:14]}
{[%emt 00:00:38]} Qb7 {[%clk 00:35:19]} {[%emt 00:08:44]} 18. h3 {[%clk
00:53:52]} {[%emt 00:05:52]} Bh5 {[%clk 00:32:29]} {[%emt 00:03:20]} 19. Ne5
{[%clk 00:51:23]} {[%emt 00:02:58]} Bxe2 {[%clk 00:32:40]} {[%emt 00:00:19]} 20.
Rxe2 {[%clk 00:51:28]} {[%emt 00:00:25]} Rac8 {[%clk 00:24:07]} {[%emt
00:09:03]} 21. Rec2 {[%clk 00:45:53]} {[%emt 00:06:05]} Rc7 {[%clk 00:14:33]}
{[%emt 00:10:04]} 22. Nxd5 {[%clk 00:44:24]} {[%emt 00:01:59]} Nxd5 {[%clk
00:13:49]} {[%emt 00:01:15]} 23. Rxc7 {[%clk 00:44:35]} {[%emt 00:00:19]} Nxc7
{[%clk 00:14:15]} {[%emt 00:00:04]} 24. Nd7 {[%clk 00:44:19]} {[%emt 00:00:45]}
Rd8 {[%clk 00:12:46]} {[%emt 00:02:00]} 25. Nc5 {[%clk 00:28:32]} {[%emt
00:16:17]} Qa7 {[%clk 00:06:09]} {[%emt 00:07:07]} 26. Nd3 {[%clk 00:27:53]}
{[%emt 00:01:08]} Bf6 {[%clk 00:01:38]} {[%emt 00:05:01]} 27. Nb4 {[%clk
00:23:08]} {[%emt 00:05:15]} Qb7 {[%clk 00:02:03]} {[%emt 00:00:06]} 28. Qc4
{[%clk 00:22:51]} {[%emt 00:00:47]} Nb5 {[%clk 00:01:56]} {[%emt 00:00:37]} 29.
Nc6 {[%clk 00:20:39]} {[%emt 00:02:41]} Rd5 {[%clk 00:01:04]} {[%emt 00:01:21]}
30. a4 {[%clk 00:17:37]} {[%emt 00:03:32]} Nd6 {[%clk 00:00:48]} {[%emt
00:00:47]} 31. Qc2 {[%clk 00:16:51]} {[%emt 00:01:16]} g6 {[%clk 00:00:41]}
{[%emt 00:00:38]} 32. Nb4 {[%clk 00:16:21]} {[%emt 00:01:00]} Ra5 {[%clk
00:00:37]} {[%emt 00:00:34]} 33. Nc6 {[%clk 00:15:23]} {[%emt 00:01:27]} Rh5
{[%clk 00:00:58]} {[%emt 00:00:09]} 34. Bf4 {[%clk 00:08:34]} {[%emt 00:07:19]}
Rd5 {[%clk 00:01:16]} {[%emt 00:00:12]} 35. Be3 {[%clk 00:08:02]} {[%emt
00:01:03]} a5 {[%clk 00:01:36]} {[%emt 00:00:11]} 36. b4 {[%clk 00:07:18]}
{[%emt 00:01:13]} Nf5 {[%clk 00:01:57]} {[%emt 00:00:09]} 37. bxa5 {[%clk
00:06:30]} {[%emt 00:01:18]} bxa5 {[%clk 00:01:58]} {[%emt 00:00:29]} 38. Qc3
{[%clk 00:04:31]} {[%emt 00:02:28]} Qb6 {[%clk 00:01:59]} {[%emt 00:00:29]} 39.
g4 {[%clk 00:03:31]} {[%emt 00:01:30]} Nxd4 {[%clk 00:01:27]} {[%emt 00:01:02]}
40. Bxd4 {[%clk 00:03:51]} {[%emt 00:00:10]} Bxd4 {[%clk 00:01:19]} {[%emt
00:00:38]} 41. Ne7+ {[%clk 00:04:07]} {[%emt 00:00:14]} Kf8 {[%clk 00:01:28]}
{[%emt 00:00:21]} 42. Nxd5 {[%clk 00:04:28]} {[%emt 00:00:09]} Bxf2+ {[%clk
00:01:53]} {[%emt 00:00:05]} 43. Kg2 {[%clk 00:04:17]} {[%emt 00:00:41]} exd5
{[%clk 00:02:12]} {[%emt 00:00:10]} 44. Qh8+ {[%clk 00:04:13]} {[%emt
00:00:34]} Ke7 {[%clk 00:02:26]} {[%emt 00:00:16]} 45. Qe5+ {[%clk 00:04:35]}
{[%emt 00:00:09]} Kd7 {[%clk 00:01:22]} {[%emt 00:01:34]} 46. Qxd5+ {[%clk
00:04:45]} {[%emt 00:00:19]} Ke7 {[%clk 00:01:07]} {[%emt 00:00:45]} 47. Qe5+
{[%clk 00:04:21]} {[%emt 00:00:54]} Kd8 {[%clk 00:12:18]} {[%emt 00:04:49]} 48.
Rd1+ {[%clk 00:20:37]} {[%emt 00:00:14]} Kc8 {[%clk 00:11:19]} {[%emt
00:01:29]} 49. Qe8+ {[%clk 00:21:01]} {[%emt 00:00:06]} Kb7 {[%clk 00:10:32]}
{[%emt 00:01:18]} 1-0

[Event "Polofinale MCR junioru 2023"]
[Site "Czech Republic"]
[Date "2023.11.18"]
[Round "9.28"]
[White "Valdman, Jakub"]
[Black "Siles, Jan"]
[Result "1/2-1/2"]
[TimeControl "90 min per 40 moves + 15 min + 30 sec / move from move 1"]
[WhiteFideId "23718196"]
[BlackFideId "23715405"]
[WhiteElo "1594"]
[BlackElo "1829"]

1. e4 {[%clk 01:30:57]} {[%emt 00:00:02]} c5 {[%clk 01:29:38]} {[%emt
00:01:21]} 2. Nf3 {[%clk 01:31:21]} {[%emt 00:00:08]} e6 {[%clk 01:30:02]}
{[%emt 00:00:06]} 3. d4 {[%clk 01:31:46]} {[%emt 00:00:05]} cxd4 {[%clk
01:30:26]} {[%emt 00:00:04]} 4. Nxd4 {[%clk 01:32:12]} {[%emt 00:00:06]} Nf6
{[%clk 01:30:47]} {[%emt 00:00:09]} 5. Nc3 {[%clk 01:31:56]} {[%emt 00:00:46]}
Bb4 {[%clk 01:30:16]} {[%emt 00:01:01]} 6. Bd3 {[%clk 01:30:10]} {[%emt
00:02:15]} Nc6 {[%clk 01:29:32]} {[%emt 00:01:15]} 7. Nxc6 {[%clk 01:26:18]}
{[%emt 00:04:23]} bxc6 {[%clk 01:29:37]} {[%emt 00:00:24]} 8. O-O {[%clk
01:25:23]} {[%emt 00:01:25]} e5 {[%clk 01:25:16]} {[%emt 00:04:51]} 9. Re1
{[%clk 01:19:17]} {[%emt 00:06:35]} O-O {[%clk 01:23:38]} {[%emt 00:02:09]} 10.
Bg5 {[%clk 01:14:34]} {[%emt 00:05:13]} Be7 {[%clk 01:19:27]} {[%emt 00:04:42]}
11. Qf3 {[%clk 01:11:08]} {[%emt 00:03:56]} d6 {[%clk 01:13:53]} {[%emt
00:06:04]} 12. Bc4 {[%clk 01:02:45]} {[%emt 00:08:53]} Be6 {[%clk 01:12:27]}
{[%emt 00:01:55]} 13. Bb3 {[%clk 01:01:41]} {[%emt 00:01:34]} Nd7 {[%clk
01:10:56]} {[%emt 00:02:01]} 14. Be3 {[%clk 00:58:56]} {[%emt 00:03:14]} Nb6
{[%clk 01:02:56]} {[%emt 00:08:30]} 15. Qe2 {[%clk 00:50:52]} {[%emt 00:08:34]}
Bf6 {[%clk 00:45:59]} {[%emt 00:17:27]} 16. Rad1 {[%clk 00:44:35]} {[%emt
00:06:47]} Qe7 {[%clk 00:44:57]} {[%emt 00:01:31]} 17. Rd2 {[%clk 00:39:29]}
{[%emt 00:05:37]} Rad8 {[%clk 00:37:16]} {[%emt 00:08:10]} 18. Red1 {[%clk
00:38:01]} {[%emt 00:01:59]} Rd7 {[%clk 00:22:34]} {[%emt 00:15:12]} 19. Qa6
{[%clk 00:34:17]} {[%emt 00:04:14]} Bxb3 {[%clk 00:19:14]} {[%emt 00:03:50]} 20.
axb3 {[%clk 00:34:20]} {[%emt 00:00:27]} Bg5 {[%clk 00:17:43]} {[%emt
00:02:02]} 21. Bxg5 {[%clk 00:17:10]} {[%emt 00:17:41]} Qxg5 {[%clk 00:18:04]}
{[%emt 00:00:08]} 22. Na4 {[%clk 00:17:14]} {[%emt 00:00:26]} Qd8 {[%clk
00:14:04]} {[%emt 00:04:30]} 23. h3 {[%clk 00:16:05]} {[%emt 00:01:40]} Qc7
{[%clk 00:12:40]} {[%emt 00:01:54]} 24. Rd3 {[%clk 00:04:10]} {[%emt 00:12:25]}
f5 {[%clk 00:10:15]} {[%emt 00:02:56]} 25. Nxb6 {[%clk 00:03:49]} {[%emt
00:00:51]} axb6 {[%clk 00:07:14]} {[%emt 00:03:31]} 26. Qc4+ {[%clk 00:03:45]}
{[%emt 00:00:33]} Kh8 {[%emt 00:01:27]} 27. Qe6 {[%clk 00:03:19]} {[%emt
00:00:54]} fxe4 {[%clk 00:02:23]} {[%emt 00:04:25]} 28. Rxd6 {[%clk 00:03:38]}
{[%emt 00:00:12]} Rxd6 {[%clk 00:01:01]} {[%emt 00:01:51]} 29. Rxd6 {[%clk
00:03:55]} {[%emt 00:00:12]} Qa7 {[%clk 00:00:58]} {[%emt 00:00:34]} 30. Rxc6
{[%clk 00:03:43]} {[%emt 00:00:43]} b5 {[%clk 00:00:52]} {[%emt 00:00:36]} 31.
Rc8 {[%clk 00:01:51]} {[%emt 00:02:22]} Qxf2+ {[%clk 00:00:43]} {[%emt
00:00:39]} 32. Kh2 {[%clk 00:01:51]} {[%emt 00:00:30]} Qf4+ {[%clk 00:00:44]}
{[%emt 00:00:29]} 33. Kg1 {[%clk 00:02:03]} {[%emt 00:00:17]} Qf2+ {[%clk
00:00:38]} {[%emt 00:00:36]} 34. Kh2 {[%clk 00:02:29]} {[%emt 00:00:04]} Qf4+
{[%clk 00:00:35]} {[%emt 00:00:32]} 35. Kg1 {[%clk 00:02:54]} {[%emt 00:00:05]}
e3 {[%clk 00:00:36]} {[%emt 00:00:30]} 36. Rxf8+ {[%clk 00:01:46]} {[%emt
00:01:38]} Qxf8 {[%clk 00:01:04]} {[%emt 00:00:01]} 37. Qxe5 {[%clk 00:02:05]}
{[%emt 00:00:11]} Qf2+ {[%clk 00:01:03]} {[%emt 00:00:31]} 38. Kh2 {[%clk
00:02:19]} {[%emt 00:00:15]} h6 {[%clk 00:01:00]} {[%emt 00:00:33]} 39. Qe8+
{[%emt 00:00:32]} 1/2-1/2

[Event "Polofinale MCR junioru 2023"]
[Site "Czech Republic"]
[Date "2023.11.18"]
[Round "9.29"]
[White "Svadlenka, Dominik"]
[Black "Babula, Matej"]
[Result "0-1"]
[TimeControl "90 min per 40 moves + 15 min + 30 sec / move from move 1"]
[WhiteFideId "23716258"]
[BlackFideId "398322"]
[WhiteElo "1725"]
[BlackElo "1899"]

1. d4 {[%clk 01:29:31]} {[%emt 00:01:28]} Nf6 {[%clk 01:30:54]} {[%emt
00:00:06]} 2. Nc3 {[%clk 01:29:42]} {[%emt 00:00:20]} d5 {[%clk 01:31:03]}
{[%emt 00:00:21]} 3. Bf4 {[%clk 01:29:55]} {[%emt 00:00:16]} Bf5 {[%clk
01:30:45]} {[%emt 00:00:47]} 4. e3 {[%clk 01:30:16]} {[%emt 00:00:10]} e6
{[%clk 01:30:46]} {[%emt 00:00:30]} 5. Nf3 {[%clk 01:30:40]} {[%emt 00:00:05]}
Bd6 {[%clk 01:29:39]} {[%emt 00:01:37]} 6. Ne5 {[%clk 01:30:54]} {[%emt
00:00:16]} O-O {[%clk 01:26:23]} {[%emt 00:03:46]} 7. Bd3 {[%clk 01:27:23]}
{[%emt 00:04:02]} Ne4 {[%clk 01:23:12]} {[%emt 00:03:41]} 8. Bxe4 {[%clk
01:18:47]} {[%emt 00:09:06]} dxe4 {[%clk 01:21:13]} {[%emt 00:02:29]} 9. g4
{[%clk 01:18:16]} {[%emt 00:01:02]} Bxe5 {[%clk 01:19:36]} {[%emt 00:02:07]} 10.
Bxe5 {[%clk 01:17:52]} {[%emt 00:00:54]} Bg6 {[%clk 01:20:00]} {[%emt
00:00:05]} 11. h4 {[%clk 01:17:29]} {[%emt 00:00:54]} h6 {[%clk 01:19:03]}
{[%emt 00:01:27]} 12. h5 {[%clk 01:16:16]} {[%emt 00:01:43]} Bh7 {[%clk
01:19:26]} {[%emt 00:00:07]} 13. Qe2 {[%clk 01:14:27]} {[%emt 00:02:19]} Nd7
{[%clk 01:14:28]} {[%emt 00:05:28]} 14. Bf4 {[%clk 01:13:50]} {[%emt 00:01:06]}
Nb6 {[%clk 01:13:42]} {[%emt 00:01:16]} 15. Rg1 {[%clk 00:48:05]} {[%emt
00:26:15]} f6 {[%clk 01:10:34]} {[%emt 00:03:38]} 16. O-O-O {[%clk 00:39:54]}
{[%emt 00:08:42]} Kh8 {[%clk 01:08:32]} {[%emt 00:02:31]} 17. Kb1 {[%clk
00:30:47]} {[%emt 00:09:37]} Qd7 {[%clk 00:59:39]} {[%emt 00:09:22]} 18. Qb5
{[%clk 00:28:45]} {[%emt 00:02:32]} c6 {[%clk 00:55:08]} {[%emt 00:05:01]} 19.
Qc5 {[%clk 00:27:01]} {[%emt 00:02:14]} Nd5 {[%clk 00:53:18]} {[%emt 00:02:19]}
20. Ne2 {[%clk 00:23:39]} {[%emt 00:03:53]} a5 {[%clk 00:50:18]} {[%emt
00:03:31]} 21. a3 {[%clk 00:17:33]} {[%emt 00:06:36]} b6 {[%clk 00:44:07]}
{[%emt 00:06:40]} 22. Qc4 {[%clk 00:17:47]} {[%emt 00:00:17]} Rfc8 {[%clk
00:43:09]} {[%emt 00:01:27]} 23. Qa2 {[%clk 00:14:46]} {[%emt 00:03:30]} b5
{[%clk 00:41:30]} {[%emt 00:02:09]} 24. c4 {[%clk 00:14:12]} {[%emt 00:01:04]}
Nb6 {[%clk 00:40:47]} {[%emt 00:01:14]} 25. c5 {[%clk 00:14:30]} {[%emt
00:00:12]} Nd5 {[%clk 00:40:29]} {[%emt 00:00:47]} 26. Qb3 {[%clk 00:13:49]}
{[%emt 00:01:11]} a4 {[%clk 00:30:39]} {[%emt 00:10:20]} 27. Qc2 {[%clk
00:14:14]} {[%emt 00:00:05]} b4 {[%clk 00:30:45]} {[%emt 00:00:25]} 28. Bd6
{[%clk 00:12:34]} {[%emt 00:02:09]} Ra7 {[%clk 00:28:18]} {[%emt 00:02:57]} 29.
Ka1 {[%clk 00:11:49]} {[%emt 00:01:15]} Rb7 {[%clk 00:27:10]} {[%emt 00:01:38]}
30. Rb1 {[%clk 00:11:03]} {[%emt 00:01:15]} Ra8 {[%clk 00:26:31]} {[%emt
00:01:10]} 31. Ng3 {[%clk 00:10:00]} {[%emt 00:01:33]} Nc7 {[%clk 00:23:06]}
{[%emt 00:03:55]} 32. Bxc7 {[%clk 00:08:47]} {[%emt 00:01:42]} Rxc7 {[%clk
00:22:47]} {[%emt 00:00:49]} 33. Nf1 {[%clk 00:08:46]} {[%emt 00:00:31]} Bg8
{[%clk 00:22:24]} {[%emt 00:00:52]} 34. Rc1 {[%clk 00:01:23]} {[%emt 00:07:54]}
e5 {[%clk 00:22:16]} {[%emt 00:00:39]} 35. Nd2 {[%clk 00:01:12]} {[%emt
00:00:40]} exd4 {[%clk 00:21:26]} {[%emt 00:01:20]} 36. Qxe4 {[%clk 00:01:22]}
{[%emt 00:00:20]} dxe3 {[%clk 00:21:12]} {[%emt 00:00:43]} 37. Qxe3 {[%clk
00:01:07]} {[%emt 00:00:45]} bxa3 {[%clk 00:17:57]} {[%emt 00:03:46]} 38. bxa3
{[%clk 00:01:29]} {[%emt 00:00:07]} Re8 {[%clk 00:17:53]} {[%emt 00:00:33]} 39.
Qf4 {[%clk 00:01:17]} {[%emt 00:00:43]} Qd5 {[%clk 00:14:12]} {[%emt 00:04:12]}
40. Nc4 {[%clk 00:00:33]} {[%emt 00:01:14]} Re4 {[%clk 00:13:51]} {[%emt
00:00:50]} 41. Qxc7 {[%clk 00:00:44]} {[%emt 00:00:19]} Rxc4 {[%clk 00:14:14]}
{[%emt 00:00:07]} 42. Rb1 {[%clk 00:14:43]} {[%emt 00:02:01]} Rc1 {[%clk
00:29:08]} {[%emt 00:01:06]} 43. Kb2 {[%clk 00:14:20]} {[%emt 00:00:54]} Qd2+
{[%clk 00:29:28]} {[%emt 00:00:10]} 0-1